Cogmind - Beta 13 *** ADVENTURER MODE // 2024.04.27 @ 16:23:49 Player: Jules Result: Self-destructed Performance ------------- Evolutions (2) 1000 Regions Visited (4) 800 Robots Destroyed (24) 120 Value Destroyed (862) 862 Prototype IDs (5) 100 Alien Tech Used (0) 0 Bonus (0) 0 TOTAL SCORE: 2882 Bonus ------- None Cogmind --------- Core Integrity 525/550 Matter 270/300 Energy 275/275 System Corruption 0% Temperature Cool (0) Movement Walking (120) Location -8/Storage Parts ------- > --- POWER (1) -------- Deuterium Engine > --- PROPULSION (4) --- Aluminum Leg Aluminum Leg Aluminum Leg Aluminum Leg > --- UTILITY (4) ------ Small Storage Unit Advanced Visual Processing Unit Improved Targeting Computer Hacking Suite > --- WEAPON (2) ------- Heavy EM Shotgun Field Laser > --- INVENTORY (8) ---- Improved Ion Engine Aluminum Leg Carbon-fiber Leg Heavy Armor Plating Heavy EM Shotgun Peak State ------------ > --- POWER ------------ Deuterium Engine > --- PROPULSION ------- Aluminum Leg Aluminum Leg Aluminum Leg Aluminum Leg > --- UTILITY ---------- Small Storage Unit Advanced Visual Processing Unit Improved Targeting Computer Hacking Suite > --- WEAPON ----------- Heavy EM Shotgun Field Laser > --- INVENTORY -------- Improved Ion Engine Aluminum Leg Carbon-fiber Leg Heavy Armor Plating Heavy EM Shotgun [Rating: 24] Favorites ----------- Power Ion Engine Engine Ion Engine Propulsion Aluminum Leg Leg Aluminum Leg Utility Small Storage Unit Storage Small Storage Unit Processor Improved Targeting Computer Hackware Hacking Suite Protection Core Shielding Weapon Heavy EM Shotgun Energy Gun Heavy EM Shotgun Ballistic Gun Light Assault Rifle Launcher Grenade Launcher Impact Weapon Hammer Build | -11 -10 -9 -8 -8 ------- Run | Yrd Mat Mat Mat Sto Slots Evolved 4 | . . 2 2 . Power . | . . . . . Propulsion 2 | . . 1 1 . Utility 2 | . . 1 1 . Weapon . | . . . . . Parts Attached 26 | 6 4 9 4 3 Power 4 | 1 . 2 . 1 Engine 4 | 1 . 2 . 1 Core . | . . . . . Reactor . | . . . . . Propulsion 8 | 2 2 1 2 1 Treads . | . . . . . Leg 8 | 2 2 1 2 1 Wheel . | . . . . . Hover . | . . . . . Flight . | . . . . . Utility 8 | 1 1 3 2 1 Device . | . . . . . Storage 1 | 1 . . . . Processor 4 | . . 3 1 . Hackware 2 | . . . 1 1 Protection 1 | . 1 . . . Artifact . | . . . . . Weapon 6 | 2 1 3 . . Energy Gun 3 | 1 . 2 . . Energy Cannon . | . . . . . Ballistic Gun 1 | 1 . . . . Ballistic Cannon . | . . . . . Launcher 1 | . 1 . . . Special Weapon . | . . . . . Impact Weapon 1 | . . 1 . . Slashing Weapon . | . . . . . Piercing Weapon . | . . . . . Special Melee Weapon . | . . . . . Unidentified Prototypes 1 | . . 1 . . Parts Lost 3 | . . 2 1 . Power 1 | . . 1 . . Propulsion . | . . . . . Utility 1 | . . . 1 . Weapon 1 | . . 1 . . Highest Loss Streak 1 | . . 1 1 . To Critical Strikes . | . . . . . Average Slot Usage (%) 96 | . 91 98 98 97 Engine 11 | . 14 10 9 9 Leg 32 | . 28 33 36 36 Storage 11 | . 14 11 9 9 Processor 14 | . . 20 18 18 Hackware 1 | . . . 7 6 Protection 2 | . 5 1 . . Energy Gun 17 | . 14 19 18 18 Ballistic Gun 2 | . 8 . . . Launcher 1 | . 5 . . . Naked Turns . | . . . . . Heaviest Build 21 | 13 16 19 19 21 Greatest Support 40 | 20 20 30 40 40 Greatest Overweight (x) 1 | 1 . . . . Average Overweight (x) . | . . . . . Largest Inventory Capacity 8 | 8 8 8 8 8 Average Capacity 7 | 7 8 8 8 8 Most Carried 8 | . 8 8 7 8 Average Carried 6 | . 4 7 6 6 Final Capacity 8 | 8 8 8 8 8 Final Carried 8 | . 8 8 7 6 Class Distribution -------------------- 82% | Mutant 17% | Hacker-Mutant Dominant Class ---------------- Mutant | -10/Materials Mutant | -9/Materials Hacker-Mutant | -8/Materials Hacker-Mutant | -8/Storage Resources | -11 -10 -9 -8 -8 ----------- Run | Yrd Mat Mat Mat Sto Matter Collected 545 | 186 100 224 35 . Remotely . | . . . . . Salvage Created 898 | . 246 483 169 . Parts 47 | . 12 18 17 . Haulers Intercepted . | . . . . . Recyclers Shooed . | . . . . . Parts Field Recycled . | . . . . . Retrieved Matter . | . . . . . Parts Self-Destructed . | . . . . . Prevented . | . . . . . Kills | -11 -10 -9 -8 -8 ------- Run | Yrd Mat Mat Mat Sto Combat Hostiles Destroyed 22 | . 8 9 5 . Guns 15 | . 4 6 5 . AOE 5 | . 4 1 . . Classes Destroyed 5 | . 2 2 1 . Worker 1 | . 1 . . . Operator 1 | . . 1 . . Swarmer 3 | . . . 3 . Grunt 12 | . 8 4 . . Sentry 7 | . . 5 2 . Best Kill Streak 5 | . 5 2 3 . Combat Bots Only 4 | . 4 2 3 . Max Kills in Single Turn 1 | . 1 1 1 . Gunslinging . | . . . . . Exploded 1 | . 1 1 . . Melee . | . . . . . Uniques/NPCs Destroyed . | . . . . . Combat | -11 -10 -9 -8 -8 -------- Run | Yrd Mat Mat Mat Sto Hostile Shots Fired 95 | . 33 45 17 . Missed 26 | . 10 10 6 . Damage Taken 826 | . 254 393 179 . Core 114 | . 43 46 25 . Absorbed by Shields . | . . . . . Redirected to Shielding 5 | . 2 3 . . Ignored by Resistances 240 | . 74 116 50 . Core Remaining (%) 90 | 100 82 88 . . Volleys Fired 53 | . 23 20 10 . Largest 2 | . 2 2 2 . Hottest 113 | . 80 113 113 . Shots Fired 90 | . 38 36 16 . Gun 78 | . 27 35 16 . Cannon . | . . . . . Launcher 12 | . 11 1 . . Special . | . . . . . Kinetic 10 | . 10 . . . Thermal 47 | . 17 20 10 . Explosive 12 | . 11 1 . . Electromagnetic 21 | . . 15 6 . Robot Hit Streak 20 | . 15 15 20 . Robot Miss Streak 2 | . 2 1 1 . Penetration Max . | . . . . . Secondary Targets . | . . . . . Shots Hit Robots 80 | . 29 38 13 . Core Hits 44 | . 20 17 7 . Critical Kills . | . . . . . Critical Parts Destroyed 2 | . . 2 . . Critical Strikes 5 | . 2 3 . . Burn 3 | . 2 1 . . Smash 2 | . . 2 . . Melee Attacks 9 | . . 9 . . Impact 9 | . . 9 . . Slashing . | . . . . . Piercing . | . . . . . Sneak Attacks . | . . . . . Combat Hostiles . | . . . . . Follow-up Attacks . | . . . . . Damage Inflicted 1996 | . 808 918 270 . Guns 1004 | . 223 542 239 . Cannons . | . . . . . Explosions 743 | . 585 127 31 . Melee 249 | . . 249 . . Ramming . | . . . . . Kinetic 52 | . 52 . . . Thermal 615 | . 171 294 150 . Explosive 650 | . 585 65 . . Electromagnetic 430 | . . 310 120 . Impact 249 | . . 249 . . Slashing . | . . . . . Piercing . | . . . . . Highest Corruption . | . . . . . Average Corruption . | . . . . . Corruption Purged . | . . . . . Corruption Blocked . | . . . . . Overload Shots . | . . . . . Overflow Damage 60 | . . 60 . . Projectiles . | . . . . . Explosions . | . . . . . Melee 60 | . . 60 . . Knockbacks 3 | . . 3 . . Impact 3 | . . 3 . . Kinetic . | . . . . . Secondary . | . . . . . Self-Inflicted Damage 56 | . 20 . 36 . Shots 2 | . 1 . 1 . Rammed . | . . . . . Targets Rammed . | . . . . . Kicked . | . . . . . Crushed . | . . . . . Highest Temperature 297 | . 152 297 165 . Average Temperature 75 | . 64 84 73 . Received Heat Transfer 450 | . 174 249 27 . Siege Activations . | . . . . . Robots Corrupted . | . . . . . Combat Hostiles . | . . . . . Parts Fried 4 | . . 4 . . Impact Corruptions 4 | . . 4 . . Robots Melted . | . . . . . Combat Hostiles . | . . . . . Parts Melted 2 | . 2 . . . Heat Transferred 1667 | . 666 692 309 . Parts Sabotaged . | . . . . . Parts Stolen . | . . . . . Parts Stripped . | . . . . . Power Chain Reactions 2 | . . 1 1 . Alert | -11 -10 -9 -8 -8 ------- Run | Yrd Mat Mat Mat Sto Peak Influence 331 | . 331 176 177 78 Initial 63 | . . 46 15 63 Average 94 | . 128 84 90 70 Maximum Alert Level 1 | . 1 . . . Low Security (%) 95 | 100 81 100 100 100 Level 1 4 | . 18 . . . Level 2 . | . . . . . Level 3 . | . . . . . Level 4 . | . . . . . Level 5 . | . . . . . High Security . | . . . . . Max Security . | . . . . . Squads Dispatched 1 | . . . . 1 Investigation . | . . . . . Extermination . | . . . . . Reinforcement 1 | . . . . 1 Assault . | . . . . . Garrison . | . . . . . Intercept . | . . . . . Searches Triggered . | . . . . . Construction Impeded . | . . . . . Haulers Reinforced . | . . . . . Active Scanning Responses . | . . . . . Cargo Convoy Interrupts . | . . . . . Stealth | -11 -10 -9 -8 -8 --------- Run | Yrd Mat Mat Mat Sto Distress Signals 3 | . 3 . . . Communications Jammed . | . . . . . Distress Signals . | . . . . . Times Spotted 30 | . 11 12 6 1 Peak Tracking Total 4 | . 4 3 3 1 Tactical Retreats 2 | . 2 . . . Traps | -11 -10 -9 -8 -8 ------- Run | Yrd Mat Mat Mat Sto Traps Triggered 1 | . . . 1 . Indirectly . | . . . . . Trap Hack Attempts . | . . . . . Triggered . | . . . . . Disarmed . | . . . . . Reprogrammed . | . . . . . Reused . | . . . . . Traps Extracted . | . . . . . Installed . | . . . . . Triggered . | . . . . . Machines | -11 -10 -9 -8 -8 ---------- Run | Yrd Mat Mat Mat Sto Machines Disabled 4 | . 2 1 1 . Max in Single Turn 1 | . 1 1 1 . Machines Repaired . | . . . . . Machines Dismantled . | . . . . . Machines Sabotaged . | . . . . . Overloaded Fab Kills . | . . . . . Hacking | -11 -10 -9 -8 -8 --------- Run | Yrd Mat Mat Mat Sto Machines Accessed 4 | . 1 . 2 1 Terminals 4 | . 1 . 2 1 Fabricators . | . . . . . Repair Stations . | . . . . . Recycling Units . | . . . . . Scanalyzers . | . . . . . Garrison Access . | . . . . . Total Hacks 7 | . 1 . 4 2 Successful 7 | . 1 . 4 2 Failed . | . . . . . Catastrophic . | . . . . . Database Lockouts . | . . . . . Manual . | . . . . . Terminals 7 | . 1 . 4 2 Fabricators . | . . . . . Repair Stations . | . . . . . Recycling Units . | . . . . . Scanalyzers . | . . . . . Garrison Access . | . . . . . Terminal Hacks 7 | . 1 . 4 2 Record 3 | . . . 2 1 Robot Analysis 1 | . . . 1 . Prototype ID Bank 2 | . 1 . . 1 Alert Level 1 | . . . 1 . Fabricator Hacks . | . . . . . Repair Station Hacks . | . . . . . Recycling Unit Hacks . | . . . . . Scanalyzer . | . . . . . Garrison Access Hacks . | . . . . . Unauthorized Hacks . | . . . . . Terminals . | . . . . . Fabricators . | . . . . . Repair Stations . | . . . . . Recycling Units . | . . . . . Scanalyzers . | . . . . . Garrison Access . | . . . . . Data Cores Recovered 1 | . . 1 . . Used . | . . . . . Hacking Detections 2 | . 1 . 1 . Full Trace Events . | . . . . . Feedback Events . | . . . . . Feedback Blocked . | . . . . . Robot Schematics Acquired . | . . . . . Robots Built . | . . . . . Authchips . | . . . . . Time . | . . . . . Total Robot Build Rating . | . . . . . Part Schematics Acquired . | . . . . . Parts Built . | . . . . . Authchips . | . . . . . Time . | . . . . . Total Part Build Rating . | . . . . . Parts Repaired . | . . . . . Time . | . . . . . Parts Recycled . | . . . . . Recycled Matter . | . . . . . Retrieved Matter . | . . . . . Retrieved Components . | . . . . . Parts Scanalyzed . | . . . . . Part Schematics Acquired . | . . . . . Parts Damaged . | . . . . . Bothacking | -11 -10 -9 -8 -8 ------------ Run | Yrd Mat Mat Mat Sto Used RIF Installer . | . . . . . Robots Hacked . | . . . . . Non-combat . | . . . . . Combat . | . . . . . Robot Hacks Applied . | . . . . . Relay Couplers Released . | . . . . . Fabnet Peak Effective % . | . . . . . Robots Rewired . | . . . . . Allies Hacked . | . . . . . Hacks Repelled . | . . . . . Allies | -11 -10 -9 -8 -8 -------- Run | Yrd Mat Mat Mat Sto Total Allies . | . . . . . Largest Group . | . . . . . Highest-Rated Group . | . . . . . Highest-Rated Ally . | . . . . . Total Orders . | . . . . . Ally Attacks . | . . . . . Total Damage . | . . . . . Kills . | . . . . . Allies Corrupted . | . . . . . Allies Melted . | . . . . . Intel | -11 -10 -9 -8 -8 ------- Run | Yrd Mat Mat Mat Sto Robot Analysis Total 1 | . . . 1 . Derelict Logs Recovered . | . . . . . Drone Launches . | . . . . . Drone Recoveries . | . . . . . Exploration | -11 -10 -9 -8 -8 ------------- Run | Yrd Mat Mat Mat Sto Turns Passed 1905 | 46 500 979 299 81 Spaces Moved 1212 | 34 340 577 198 63 Core 6 | 6 . . . . Treads . | . . . . . Legs 1206 | 28 340 577 198 63 Wheels . | . . . . . Hover . | . . . . . Flight . | . . . . . Fastest Speed 50 | 50 120 120 120 120 Average Speed 119 | 111 120 120 120 120 Slowest Speed 190 | 190 120 120 120 120 Overloaded Moves . | . . . . . Propulsion Burnouts . | . . . . . Robots Hopped . | . . . . . Cave-ins Triggered . | . . . . . Exploration Rate (%) 26 | 4 54 42 16 15 Regions Visited 4 Branch Regions 1 Pre-discovered Areas . | . . . . . Known Exits Taken . | . . . . . Unknown Exits Taken 4 | 1 1 1 1 . Scrap Searched . | . . . . . Spaces Dug . | . . . . . Terrain Destroyed 57 | . 44 11 2 . Melee . | . . . . . Projectile . | . . . . . AOE 57 | . 44 11 2 . Terrain Rammed . | . . . . . Walls Destroyed . | . . . . . Machines Disabled . | . . . . . Actions | -11 -10 -9 -8 -8 --------- Run | Yrd Mat Mat Mat Sto Total 1555 | 39 395 812 242 67 Wait 230 | . 16 184 30 . Move 1208 | 33 339 576 197 63 Hop . | . . . . . Pick Up 20 | . 11 8 1 . Fast Attach 7 | 6 . 1 . . Attach 8 | . 1 4 2 1 Detach . | . . . . . Swap 11 | . 3 4 2 2 Drop 9 | . 2 6 . 1 Fire 53 | . 23 20 10 . Melee 9 | . . 9 . . Ram . | . . . . . Kick . | . . . . . Crush . | . . . . . Escape Stasis . | . . . . . Rewire . | . . . . . Trap . | . . . . . Miscellaneous . | . . . . . Route ------- -11/Scrapyard -10/Materials (discovered 2 exits: *Mat / [*Min]) -9/Materials -8/Materials -8/Storage History --------- Turn | Location | Event 13 | -11/Scrapyard | Discovered new exit (range 16) 47 | -11/Scrapyard | Entered Materials 94 | -10/Materials | Discovered new exit (range 8) 314 | -10/Materials | Build established: Mutant 426 | -10/Materials | Discovered new exit (range 15) 547 | -10/Materials | Entered another Materials area 547 | -9/Materials | Evolved 2 slots: Propulsion x1, Utility x1 1508 | -9/Materials | Discovered new exit (range 11) 1526 | -9/Materials | Entered another Materials area 1526 | -8/Materials | Evolved 2 slots: Propulsion x1, Utility x1 1677 | -8/Materials | Discovered new exit (range 19) 1825 | -8/Materials | Entered Storage 1906 | -8/Storage | Self-destructed Last Messages --------------- R-06 Scavenger collects Lgt. Armor Plating. Triggered Explosive Trap. An explosion rips through the floor. LOCATION=UNKNOWN GOAL=ESCAPE Dropped Ion Engine. Connecting with Terminal... Current location identified: Storage >>Query(Storage) Holding area for both raw materials and components based on old technology. >>Prototypes Downloading prototype IDs... Imp. Cesium-ion Thruster Imp. Medium Laser O-24 Administrator: "IFF HANDSHAKE FAILED. SECURING TERMINAL." ALERT: Hostiles spotted, dispatching reinforcements to Terminal S009. K-01 Serf collects debris. Map ----- +----------------------------------------------------+ | | | | | | | | | | | | | | | | | | | | | | | | | | | | | | | | | | | ?????###########??????????????????? | | ?????# #??????????????????? | | ?????# """" #??????????????????? | | ?????# """" #??????????????????? | | ?????# """" #??????????????????? | | ?????# """" #??????????????????? | | ?????# #??????????????????? | | ?????# #??????????????????? | | ?????#[ @ #??????????????????? | | ????######/###################+#### | | ????# ^ | | ????# | | ????# | | ????######u################### #### | | ??????# T #??????????????????? | | ??????# #??????????????????? | | ??????# #??????????????????? | | ??????# #??????????????????? | | ??????# #??????????????????? | | ??????# """"" #??????????????????? | | ??????# """"" #??????????????????? | | ??????# """"" #??????????????????? | | ??????# #??????????????????? | | ??????#+########??????????????????? | | ??????# ###########???????????????? | | ??????# #??????????????? | | ??????# #??????????????? | | ??????##+###+#### #??????????????? | | ??????? ??? ???????????????????? | | ??????? ""????? #?????????????????? | | ??????? """?????#?????????????????? | | ??????? """???????????????????????? | | ?????? ??????????????????????? | +----------------------------------------------------+ Best States ------------- Heat Dissipation 31 Energy Generation 14 Energy Capacity 275 Matter Stores 300 Matter Capacity 300 Sight Range 20 Terrain Scan Density 10 Resistance: KI 20 Resistance: TH 20 Resistance: EX 20 Resistance: EM 20 Resistance: I 20 Resistance: S 20 Resistance: P 20 Core Shielding 20 Evasion (%) 55 Targeting Accuracy 6 Offensive Hacking 20 Item Schematics ----------------- None Robot Schematics ------------------ None Fabricated ------------ Nothing Alien Tech Used ----------------- None Achievements -------------- None Challenges ------------ None Game ------ Seed FlakAnalysisSplitter Manual? 0 Play Time 00:27:35 Cumulative 5.2 hours Start 2024.04.19 @ 21:01:21 End 2024.04.27 @ 16:23:49 Sessions 11 Manual Loads 0 Difficulty Adventurer Special Mode None Game No. 9 Rogue 5 Adventurer 4 Explorer 0 Win Type - Total 0 Types 0/0/0/0/0/0/0/0/0 Lore% 13 Gallery% 11 Achievement% 9 Wizard Run 0 Options --------- Layout 2 ASCII 0 Keyboard 0 Movement Mouse Keybinds 0 Fullscreen 2 Font 24/Smallcaps Map View 50x44 Zoom Use 0% Tactical HUD 0 Map Filters NONE Filters NONE Steam 1 RUN: 4fee9a1a-3cfb-418a-b115-a16b984d7a72